Cogmind - Beta 15 @@@ ROGUE MODE // 2025.08.13 @ 18:03:46 Player: beans Result: Destroyed by D-53 Grenadier with Mini Grenade Launcher Performance ------------- Evolutions (0) 0 Regions Visited (4) 800 Robots Destroyed (22) 110 Value Destroyed (389) 389 Prototype IDs (0) 0 Alien Tech Used (0) 0 Bonus (0) 0 TOTAL SCORE: 1299 Bonus ------- None Cogmind --------- Core Integrity 0/250 Matter 214/300 Energy 99/100 System Corruption 12% Temperature Cool (72) Movement Core (100) Ox1 Location -9/Mines Parts ------- > --- POWER (1) -------- (None) > --- PROPULSION (2) --- (None) > --- UTILITY (2) ------ (None) > --- WEAPON (2) ------- Ion Cannon > --- INVENTORY (5) ---- Targeting Computer Makeshift Cloaking Device Peak State ------------ > --- POWER ------------ Light Angular Momentum Engine > --- PROPULSION ------- Carbon-fiber Leg Carbon-fiber Leg > --- UTILITY ---------- Heat Sink Heat Sink > --- WEAPON ----------- Ion Cannon Ion Cannon > --- INVENTORY -------- Targeting Computer Targeting Computer Targeting Computer Beam Rifle Grenade Launcher [Rating: 19] Favorites ----------- Power Light Angular Momentum Engine Engine Light Angular Momentum Engine Propulsion Carbon-fiber Leg Treads Light Treads Leg Carbon-fiber Leg Utility Heat Sink Device Heat Sink Processor Targeting Computer Weapon Ion Cannon Energy Gun Beam Rifle Energy Cannon Ion Cannon Ballistic Gun Assault Rifle Launcher Grenade Launcher Build | -11 -10 -10 -10 -9 ------- Run | Yrd Mat Min Exi Min Slots Evolved . | . . . . . Power . | . . . . . Propulsion . | . . . . . Utility . | . . . . . Weapon . | . . . . . Parts Attached 19 | 5 2 10 . 2 Power 3 | 1 . 2 . . Engine 3 | 1 . 2 . . Core . | . . . . . Reactor . | . . . . . Propulsion 4 | 2 . 2 . . Treads 2 | 2 . . . . Leg 2 | . . 2 . . Wheel . | . . . . . Hover . | . . . . . Flight . | . . . . . Utility 4 | . . 2 . 2 Device 2 | . . 2 . . Storage . | . . . . . Processor 2 | . . . . 2 Hackware . | . . . . . Protection . | . . . . . Artifact . | . . . . . Weapon 8 | 2 2 4 . . Energy Gun 2 | . . 2 . . Energy Cannon 2 | . . 2 . . Ballistic Gun 2 | 2 . . . . Ballistic Cannon . | . . . . . Launcher 2 | . 2 . . . Special Weapon . | . . . . . Impact Weapon . | . . . . . Slashing Weapon . | . . . . . Piercing Weapon . | . . . . . Special Melee Weapon . | . . . . . Unidentified Prototypes . | . . . . . Corrupted Parts 1 | . . 1 . . System Corruption 5 | . . 5 . . Parts Lost 11 | . 1 1 . 9 Power 2 | . 1 . . 1 Propulsion 2 | . . . . 2 Utility 4 | . . . . 4 Weapon 3 | . . 1 . 2 Highest Loss Streak 9 | . 1 1 . 9 To Critical Strikes . | . . . . . Average Backups 3 | . 1 3 5 4 Power . | . . . . . Propulsion . | . . . . . Utility 2 | . . 1 3 3 Weapon 1 | . 1 1 1 . Tool/Special . | . . . . . Unused Backups 2 | . . . . 2 Power . | . . . . . Propulsion . | . . . . . Utility 2 | . . . . 2 Weapon . | . . . . . Tool/Special . | . . . . . Average Slot Usage (%) 87 | . 60 86 100 90 Engine 11 | . 4 11 14 13 Treads 8 | . 27 11 . . Leg 17 | . . 12 28 27 Device 20 | . . 22 28 21 Energy Gun 7 | . . 17 . . Energy Cannon 13 | . . 5 28 26 Ballistic Gun 3 | . 15 3 . . Launcher 2 | . 12 1 . . Peak Build Rating 19 | 5 5 19 19 19 Average Rating 13 | 3 4 11 19 17 On Entrance 9 | . 5 4 19 19 Naked Turns . | . . . . . Heaviest Build 23 | 7 8 23 23 23 Greatest Support 40 | 40 40 40 30 30 Greatest Overweight (x) 1 | . . 1 . 1 Average Overweight (x) . | . . . . . Largest Inventory Capacity 5 | 5 5 5 5 5 Average Capacity 5 | 5 5 5 5 5 Most Carried 5 | 2 5 5 5 5 Average Carried 3 | . 1 3 4 4 Final Capacity 5 | 5 5 5 5 5 Final Carried 5 | . 2 5 5 2 Class Distribution -------------------- 75% | Scavenger-Mutant 24% | Mutant Dominant Class ---------------- Mutant | -10/Materials Scavenger-Mutant | -10/Mines Scavenger-Mutant | -10/Exiles Scavenger-Mutant | -9/Mines Resources | -11 -10 -10 -10 -9 ----------- Run | Yrd Mat Min Exi Min Matter Collected 655 | 251 113 274 . 17 Remotely . | . . . . . Salvage Created 904 | 53 203 564 14 70 Parts 48 | 3 10 35 . . Haulers Intercepted . | . . . . . Recyclers Shooed 3 | . . 3 . . Parts Field Recycled . | . . . . . Retrieved Matter . | . . . . . Parts Self-Destructed . | . . . . . Prevented . | . . . . . Kills | -11 -10 -10 -10 -9 ------- Run | Yrd Mat Min Exi Min Combat Hostiles Destroyed 19 | . 4 3 . 12 Guns 3 | . . 3 . . Cannons 4 | . . . . 4 AOE 12 | . 4 . . 8 Classes Destroyed 7 | 1 4 1 . 1 Worker 4 | . 1 3 . . Builder 4 | . 1 3 . . Recycler 6 | 1 1 4 . . Operator 1 | . 1 . . . Grunt 5 | . 4 1 . . Sentry 2 | . . 2 . . Assembled 12 | . . . . 12 Best Kill Streak 11 | 1 3 4 . 11 Combat Bots Only 11 | . 2 2 . 11 Max Kills in Single Turn 4 | 1 2 1 . 4 Gunslinging . | . . . . . Exploded 4 | . 1 . . 4 Melee . | . . . . . Uniques/NPCs Destroyed . | . . . . . Combat | -11 -10 -10 -10 -9 -------- Run | Yrd Mat Min Exi Min Hostile Shots Fired 73 | . 19 21 . 33 Missed 14 | . 5 1 . 8 Hits 59 | . 14 20 . 25 Melee 12 | . . . . 12 Projectile 47 | . 14 20 . 13 AOE 4 | . . . . 4 Critical Strikes 1 | . . 1 . . Damage Taken 1223 | . 210 307 . 706 Core 257 | . 39 53 . 165 Absorbed by Shields . | . . . . . Core Remaining (%) 100 | 100 . . . . Volleys Fired 92 | 3 15 46 5 23 Largest 2 | 2 2 2 2 2 Hottest 120 | 40 50 120 120 120 Shots Fired 171 | 6 27 91 10 37 Gun 104 | 6 16 82 . . Cannon 50 | . . 9 10 31 Launcher 17 | . 11 . . 6 Special . | . . . . . Kinetic 38 | 6 16 16 . . Thermal 116 | . . 75 10 31 Explosive 17 | . 11 . . 6 Electromagnetic . | . . . . . Robot Hit Streak 7 | 4 3 7 . 4 Robot Miss Streak 5 | 1 2 3 . 5 Penetration Max . | . . . . . Secondary Targets . | . . . . . Shots Hit Robots 60 | 5 4 36 . 15 Core Hits 57 | 2 11 19 1 24 Critical Kills . | . . . . . Critical Parts Destroyed 1 | . 1 . . . Critical Strikes 3 | . 1 2 . . Burn 2 | . . 2 . . Destroy 1 | . 1 . . . Melee Attacks . | . . . . . Impact . | . . . . . Slashing . | . . . . . Piercing . | . . . . . Sneak Attacks . | . . . . . Combat Hostiles . | . . . . . Follow-up Attacks . | . . . . . Damage Inflicted 1970 | 61 594 517 24 774 Guns 602 | 61 70 471 . . Cannons 340 | . . 46 24 270 Explosions 1028 | . 524 . . 504 Melee . | . . . . . Ramming . | . . . . . Kinetic 269 | 61 70 138 . . Thermal 673 | . . 379 24 270 Explosive 1028 | . 524 . . 504 Electromagnetic . | . . . . . Impact . | . . . . . Slashing . | . . . . . Piercing . | . . . . . Highest Corruption 12 | . . 5 5 12 Average Corruption 5 | . . 5 5 5 Corruption Purged . | . . . . . Corruption Blocked . | . . . . . Effects 24 | . . 5 14 5 Message Errors 6 | . . 1 4 1 Matter Fused 9 | . . 3 4 2 Heat Flow Errors 3 | . . . 3 . Energy Discharges 3 | . . 1 2 . Data Loss (major) 2 | . . . 1 1 Misdirections 1 | . . . . 1 Overload Shots . | . . . . . Overflow Damage 76 | . 43 . . 33 Projectiles . | . . . . . Explosions 76 | . 43 . . 33 Melee . | . . . . . Knockbacks . | . . . . . Impact . | . . . . . Kinetic . | . . . . . Secondary . | . . . . . Self-Inflicted Damage 158 | . 42 . . 116 Shots 7 | . 2 . . 5 Rammed . | . . . . . Targets Rammed . | . . . . . Kicked . | . . . . . Crushed . | . . . . . Highest Temperature 291 | . 2 120 197 291 Average Temperature 78 | . 2 38 84 100 Received Heat Transfer 267 | . 93 114 . 60 Effects 1 | . . . . 1 Interference 1 | . . . . 1 Siege Activations . | . . . . . Martial Activations . | . . . . . Shielding Activations . | . . . . . Robots Disrupted . | . . . . . Combat Hostiles . | . . . . . Robots Corrupted . | . . . . . Combat Hostiles . | . . . . . Parts Fried . | . . . . . Impact Corruptions . | . . . . . Robots Melted . | . . . . . Combat Hostiles . | . . . . . Parts Melted . | . . . . . Heat Transferred 1554 | . . 1073 37 444 Parts Sabotaged . | . . . . . Parts Stolen . | . . . . . Parts Stripped . | . . . . . Power Chain Reactions . | . . . . . Alert | -11 -10 -10 -10 -9 ------- Run | Yrd Mat Min Exi Min Maximum Alert Level . | . . . . . Low Security (%) 100 | 100 100 100 . 100 Level 1 . | . . . . . Level 2 . | . . . . . Level 3 . | . . . . . Level 4 . | . . . . . Level 5 . | . . . . . High Security . | . . . . . Max Security . | . . . . . Peak Influence 127 | . 127 45 . 17 Initial 45 | . . 45 . . Average 18 | . 70 7 . 1 Influence Increases 398 | 5 237 129 . 27 Destroy 0b10 Robot/C 140 | . 80 60 . . Destroy 0b10 Robot/NC 75 | 5 20 50 . . Destroy Leader 20 | . 20 . . . Disable Machine 60 | . 45 15 . . Destroy Structure 103 | . 72 4 . 27 Influence Decreases 398 | 5 120 246 . 27 Entered New Map 72 | . . 72 . . Time Decay 298 | 5 110 169 . 14 Lost Part 28 | . 10 5 . 13 Squads Dispatched 1 | . 1 . . . Investigation . | . . . . . Extermination . | . . . . . Reinforcement 1 | . 1 . . . Assault . | . . . . . Garrison . | . . . . . Intercept . | . . . . . Searches Triggered . | . . . . . Construction Impeded . | . . . . . Haulers Reinforced . | . . . . . Active Scanning Responses . | . . . . . Cargo Convoy Interrupts . | . . . . . Stealth | -11 -10 -10 -10 -9 --------- Run | Yrd Mat Min Exi Min Distress Signals . | . . . . . Communications Jammed . | . . . . . Distress Signals . | . . . . . Times Spotted 25 | . 5 3 . 17 Peak Tracking Total 16 | . 2 2 . 16 Tactical Retreats 2 | . . . . 2 Traps | -11 -10 -10 -10 -9 ------- Run | Yrd Mat Min Exi Min Traps Triggered 2 | . 2 . . . Indirectly . | . . . . . Trap Hack Attempts . | . . . . . Triggered . | . . . . . Disarmed . | . . . . . Reprogrammed . | . . . . . Reused . | . . . . . Traps Extracted . | . . . . . Installed . | . . . . . Triggered . | . . . . . Machines | -11 -10 -10 -10 -9 ---------- Run | Yrd Mat Min Exi Min Machines Disabled 7 | . 5 2 . . Max in Single Turn 2 | . 2 1 . . Machines Repaired . | . . . . . Machines Dismantled . | . . . . . Machines Sabotaged . | . . . . . Overloaded Fab Kills . | . . . . . Hacking | -11 -10 -10 -10 -9 --------- Run | Yrd Mat Min Exi Min Machines Accessed 5 | . . 1 4 . Terminals . | . . . . . Fabricators . | . . . . . Repair Stations . | . . . . . Recycling Units . | . . . . . Scanalyzers . | . . . . . Garrison Access . | . . . . . Total Hacks 50 | . . 1 49 . Successful 50 | . . 1 49 . Failed . | . . . . . Catastrophic . | . . . . . Database Lockouts . | . . . . . Manual . | . . . . . Terminals . | . . . . . Fabricators . | . . . . . Repair Stations . | . . . . . Recycling Units . | . . . . . Scanalyzers . | . . . . . Garrison Access . | . . . . . Terminal Hacks 50 | . . 1 49 . Record 49 | . . . 49 . Open Door 1 | . . 1 . . Fabricator Hacks . | . . . . . Repair Station Hacks . | . . . . . Recycling Unit Hacks . | . . . . . Scanalyzer . | . . . . . Garrison Access Hacks . | . . . . . Unauthorized Hacks . | . . . . . Terminals . | . . . . . Fabricators . | . . . . . Repair Stations . | . . . . . Recycling Units . | . . . . . Scanalyzers . | . . . . . Garrison Access . | . . . . . Data Cores Recovered . | . . . . . Used . | . . . . . Hacking Detections . | . . . . . Full Trace Events . | . . . . . Feedback Events . | . . . . . Feedback Blocked . | . . . . . Robot Schematics Acquired . | . . . . . Robots Built . | . . . . . Authchips . | . . . . . Time . | . . . . . Total Robot Build Rating . | . . . . . Part Schematics Acquired . | . . . . . Parts Built . | . . . . . Authchips . | . . . . . Time . | . . . . . Total Part Build Rating . | . . . . . Parts Repaired . | . . . . . Time . | . . . . . Parts Recycled . | . . . . . Recycled Matter . | . . . . . Retrieved Matter . | . . . . . Retrieved Components . | . . . . . Parts Scanalyzed . | . . . . . Part Schematics Acquired . | . . . . . Parts Damaged . | . . . . . Bothacking | -11 -10 -10 -10 -9 ------------ Run | Yrd Mat Min Exi Min Used RIF Installer . | . . . . . Robots Hacked . | . . . . . Non-combat . | . . . . . Combat . | . . . . . Robot Hacks Applied . | . . . . . Relay Couplers Released . | . . . . . Fabnet Peak Effective % . | . . . . . Robots Rewired . | . . . . . Allies Hacked . | . . . . . Hacks Repelled . | . . . . . Allies | -11 -10 -10 -10 -9 -------- Run | Yrd Mat Min Exi Min Total Allies . | . . . . . Largest Group . | . . . . . Highest-Rated Group . | . . . . . Highest-Rated Ally . | . . . . . Total Orders . | . . . . . Ally Attacks . | . . . . . Total Damage . | . . . . . Kills . | . . . . . Allies Corrupted . | . . . . . Allies Melted . | . . . . . Intel | -11 -10 -10 -10 -9 ------- Run | Yrd Mat Min Exi Min Active Infowar (turns) . | . . . . . Robot Analysis Total . | . . . . . Derelict Logs Recovered 2 | . . 2 . . Drone Launches . | . . . . . Drone Recoveries . | . . . . . Exploration | -11 -10 -10 -10 -9 ------------- Run | Yrd Mat Min Exi Min Turns Passed 1775 | 69 246 760 546 154 Spaces Moved 1133 | 41 122 454 442 74 Core 15 | 13 1 . . 1 Treads 276 | 28 121 127 . . Legs 842 | . . 327 442 73 Wheels . | . . . . . Hover . | . . . . . Flight . | . . . . . Fastest Speed 50 | 50 50 120 120 100 Average Speed 128 | 125 159 131 120 119 Slowest Speed 190 | 160 160 190 120 120 Overloaded Moves . | . . . . . Propulsion Burnouts . | . . . . . Robots Hopped . | . . . . . Potential Cave-ins . | . . . . . Cave-ins Triggered . | . . . . . Exploration Rate (%) 45 | 4 30 88 90 16 Regions Visited 4 Branch Regions 3 Pre-discovered Areas 2 | . . 1 1 . Known Exits Taken . | . . . . . Unknown Exits Taken 4 | 1 1 1 1 . Scrap Searched . | . . . . . Spaces Dug 28 | . 11 . . 17 Terrain Destroyed 139 | . 90 6 . 43 Melee . | . . . . . Projectile 14 | . . 6 . 8 AOE 125 | . 90 . . 35 Terrain Rammed . | . . . . . Walls Destroyed . | . . . . . Machines Disabled . | . . . . . Actions | -11 -10 -10 -10 -9 --------- Run | Yrd Mat Min Exi Min Total 1278 | 53 147 528 448 102 Wait 1 | . . 1 . . Move 1129 | 40 121 453 441 74 Hop . | . . . . . Pick Up 23 | 5 6 11 1 . Fast Attach 2 | . . 2 . . Attach 18 | 5 4 6 . 3 Detach . | . . . . . Swap 5 | . 1 3 . 1 Drop 7 | . . 6 1 . Fire 92 | 3 15 46 5 23 Melee . | . . . . . Ram 1 | . . . . 1 Kick . | . . . . . Crush . | . . . . . Escape Stasis . | . . . . . Rewire . | . . . . . Trap . | . . . . . Miscellaneous . | . . . . . Route ------- -11/Scrapyard -10/Materials (discovered 2 exits: [*Mat] / *Min) -10/Mines -10/Exiles -9/Mines History --------- Turn | Location | Event 7 | -11/Scrapyard | Discovered new exit (range 16) 70 | -11/Scrapyard | Entered Materials 214 | -10/Materials | Discovered new exit (range 15) 263 | -10/Materials | Discovered new exit (range 15) 305 | -10/Materials | Build established: Mutant 316 | -10/Materials | Entered Mines 388 | -10/Mines | Met a Derelict bent on vengeance 729 | -10/Mines | Build established: Scavenger-Mutant 864 | -10/Mines | Learned location of Zion (-6) 912 | -10/Mines | Met a Derelict who couldn't figure out how to use a Trap Extractor 1006 | -10/Mines | Learned Materials terminal intel 1070 | -10/Mines | Deemed a non-threat by the Exiles lab entrance 1070 | -10/Mines | Discovered new exit (range 5) 1076 | -10/Mines | Entered Exiles 1076 | -10/Exiles | Found Exiles lab destroyed 1611 | -10/Exiles | Discovered new exit (range 11) 1622 | -10/Exiles | Entered Mines 1629 | -9/Mines | Assembled infested the area 1748 | -9/Mines | Core integrity fell below 50% 1750 | -9/Mines | Destroyed 11 combat bots 1768 | -9/Mines | Core integrity fell below 20% 1768 | -9/Mines | System corruption reached 10% 1776 | -9/Mines | Destroyed by D-53 Grenadier with Mini Grenade Launcher Last Messages --------------- Heat Sink destroyed. System corrupted by crushing effect (+1). Knocked back. as-52950 destroyed. System corrupted: Substantial component data lost. Overheating: System interference. Ion Cannon temporarily disabled. Ion Cannon destroyed. System corrupted by crushing effect (+2). Lgt. Angular Momentum Engine destroyed. Targeting Computer destroyed. System corrupted by crushing effect (+4). Carbon-fiber Leg destroyed. System corrupted: Carbon-fiber Leg stumbles. System corrupted: Matter fused (-5). Knocked back. Acquired 3 matter. Carbon-fiber Leg destroyed. as-61345 destroyed. Map ----- +----------------------------------------------------+ | ????????????????????????????## ##? | | ??????????????????????????### #?? | | ??????????????????????##### # ##? | | ??????????????????????# #? | | ?????????????????????## #? | | ?????????????????????# # ##? | | ??????????????????????# % #?? | | ??????????????????????# # ##? | | ????????????????####??## # #? | | ??????????????### ##?## #? | | ?????????????## #?#"% #? | | ?????????????# #### ### ##? | | ?????????????# ##" #?### ##?? | | ?????????????# ### ##??#" #??? | | ?????????????## #??#" #??? | | ??????????????## ####" #??## #??? | | ???????????????## ##?# "%##### #??? | | ????????????????####????# #??? | | ????????????????????????# #######??? | | ??????????????????????###% #????? | | ??????????????????????# #????? | | ??????????????????????# #????? | | ????????????????## ??## a #????? | | ????????????# # # #????? | | ??????????????# d #??????? | | ?????????? % d @ #??????? | | ?????????? # #??? | | ??????????? #??? | | ???????????# ### ## ##??? | | ???????????????## ###?? #???? | | ????????????????## ##????? #???? | | ?????????????????# ???????# ##???? | | ?????????????????$?????????####????? | | ????????????????#??????????????????? | | ???????????????????????????????????? | | ???????????????????????????????????? | | ???????????????????????????????????? | | ???????????????????????????????????? | | ???????????????????????????????????? | | ???????????????????????????????????? | | ???????????????????????????????????? | | ???????????????????????????????????? | | ???????????????????????????????????? | | ???????????????????????????????????? | | ???????????????????????????????????? | | ???????????????????????????????????? | | ???????????????????????????????????? | | ???????????????????????????????????? | | ???????????????????????????????????? | | ???????????????????????????????????? | +----------------------------------------------------+ Best States ------------- Heat Dissipation 45 Energy Generation 18 Energy Capacity 265 Matter Stores 300 Matter Capacity 300 Sight Range 16 Terrain Scan Density 10 Evasion (%) 55 Targeting Accuracy 5 Recoil Reduction 2 Item Schematics ----------------- None Robot Schematics ------------------ None Fabricated ------------ Nothing Repaired ---------- Nothing Alien Tech Used ----------------- None Achievements -------------- None Challenges ------------ None Game ------ Seed TerrainMappingReplicator Manual? 0 Play Time 00:12:30 Cumulative 88.3 hours Start 2025.08.13 @ 09:14:00 End 2025.08.13 @ 18:03:46 Sessions 1 Manual Loads 0 Difficulty Rogue Special Mode None Game No. 346 Rogue 346 Adventurer 0 Explorer 0 Win Type - Total 0 Types 0/0/0/0/0/0/0/0/0/0 Lore% 37 Gallery% 37 Achievement% 30 Wizard Run 0 Options --------- Layout 2 ASCII 0 Keyboard 0 Movement Mouse Keybinds 0 Fullscreen 2 Font 24/Smallcaps Map View 50x44 Zoom Use 0% Tactical HUD 0 Map Filters NONE Filters NONE Steam 1 RUN: dc8e06fa-2892-4a4b-bb72-bdc0c55ddaed